Cogmind - Beta 11.1 *** ADVENTURER MODE // 2022.07.15 @ 04:48:01 Player: 530Phil Result: Destroyed by S-10 Pest with Light Assault Rifle Performance ------------- Evolutions (0) 0 Regions Visited (2) 400 Robots Destroyed (20) 100 Value Destroyed (283) 283 Prototype IDs (3) 60 Alien Tech Used (0) 0 Bonus (-256) -256 TOTAL SCORE: 587 Bonus ------- Follower Combat Kills 25 Friendly Fire -281 Cogmind --------- Core Integrity 0/250 Matter 225/300 Energy 100/100 System Corruption 0% Temperature Cool (0) Movement Core (350) Ox6 Location -10/Mines Parts ------- > --- POWER (1) -------- (None) > --- PROPULSION (2) --- (None) > --- UTILITY (2) ------ Large Storage Unit Utility Shielding > --- WEAPON (2) ------- (None) > --- INVENTORY (15) --- Aluminum Leg Rocket Launcher Datajack Peak State ------------ > --- POWER ------------ Light Ion Engine > --- PROPULSION ------- Aluminum Leg Aluminum Leg > --- UTILITY ---------- Targeting Computer Utility Shielding > --- WEAPON ----------- Assault Rifle Rocket Launcher > --- INVENTORY -------- Light Ion Engine Flight Unit Medium Laser Small Laser [Rating: 8] Favorites ----------- Power Light Ion Engine Engine Light Ion Engine Propulsion Aluminum Leg Treads Light Treads Leg Aluminum Leg Wheel Wheel Flight Unit Flight Unit Utility Utility Shielding Storage Large Storage Unit Processor Targeting Computer Protection Utility Shielding Weapon Assault Rifle Energy Gun Medium Laser Ballistic Gun Assault Rifle Launcher Rocket Launcher Build | -11 -10 -10 ------- Run | Scr Mat Min Slots Evolved . | . . . Power . | . . . Propulsion . | . . . Utility . | . . . Weapon . | . . . Parts Attached 18 | 6 11 1 Power 3 | 1 2 . Engine 3 | 1 2 . Core . | . . . Reactor . | . . . Propulsion 7 | 3 4 . Treads 1 | . 1 . Leg 4 | 2 2 . Wheel 1 | 1 . . Hover . | . . . Flight 1 | . 1 . Utility 4 | . 4 . Device . | . . . Storage 1 | . 1 . Processor 1 | . 1 . Hackware . | . . . Protection 2 | . 2 . Artifact . | . . . Weapon 4 | 2 1 1 Energy Gun 1 | 1 . . Energy Cannon . | . . . Ballistic Gun 1 | 1 . . Ballistic Cannon . | . . . Launcher 2 | . 1 1 Special Weapon . | . . . Impact Weapon . | . . . Slashing Weapon . | . . . Piercing Weapon . | . . . Special Melee Weapon . | . . . Unidentified Prototypes . | . . . Parts Lost 5 | . . 5 Power 1 | . . 1 Propulsion 2 | . . 2 Utility . | . . . Weapon 2 | . . 2 Highest Loss Streak 5 | . . 5 To Critical Strikes . | . . . Average Slot Usage (%) 95 | . 96 92 Engine 13 | . 14 13 Treads 6 | . 3 14 Leg 21 | . 24 12 Storage 7 | . 5 14 Processor 4 | . 6 . Protection 13 | . 13 14 Energy Gun 3 | . 4 . Ballistic Gun 13 | . 14 11 Launcher 9 | . 8 11 Naked Turns . | . . . Heaviest Build 32 | 7 32 32 Greatest Support 20 | 20 20 20 Greatest Overweight (x) 3 | . 3 1 Average Overweight (x) . | . . 1 Largest Inventory Capacity 15 | 5 15 15 Average Capacity 9 | 5 9 15 Most Carried 5 | 5 5 3 Average Carried 3 | 2 4 3 Final Capacity 15 | 5 15 15 Final Carried 4 | 3 4 3 Class Distribution -------------------- 100% | Mutant Dominant Class ---------------- Mutant | -10/Materials Mutant | -10/Mines Resources | -11 -10 -10 ----------- Run | Scr Mat Min Matter Collected 405 | 269 115 21 Remotely . | . . . Salvage Created 421 | 36 224 161 Parts 29 | . 23 6 Haulers Intercepted . | . . . Recyclers Shooed . | . . . Parts Field Recycled . | . . . Retrieved Matter . | . . . Parts Self-Destructed . | . . . Prevented . | . . . Kills | -11 -10 -10 ------- Run | Scr Mat Min Combat Hostiles Destroyed 13 | 1 11 1 Guns 10 | 1 9 . AOE 3 | . 2 1 Classes Destroyed 7 | 1 2 4 Worker 1 | . . 1 Builder 1 | . . 1 Recycler 1 | . . 1 Watcher 2 | . 2 . Swarmer 9 | . 9 . Grunt 4 | 1 2 1 Zionite 1 | . . 1 Thug 1 | . . 1 Best Kill Streak 4 | 1 4 4 Combat Bots Only 3 | 1 3 1 Max Kills in Single Turn 2 | 1 2 2 Gunslinging 1 | . 1 . Exploded 2 | . 2 1 Melee . | . . . Uniques/NPCs Destroyed . | . . . Combat | -11 -10 -10 -------- Run | Scr Mat Min Damage Taken 853 | 35 212 606 Core 253 | . 71 182 Absorbed by Shields . | . . . Redirected to Shielding 8 | . . 8 Core Remaining (%) 100 | 100 . . Volleys Fired 32 | 3 23 6 Largest 2 | 2 2 2 Hottest 70 | 70 70 53 Shots Fired 62 | 6 44 12 Gun 54 | 6 42 6 Cannon . | . . . Launcher 8 | . 2 6 Special . | . . . Kinetic 32 | 3 23 6 Thermal 22 | 3 19 . Explosive 8 | . 2 6 Electromagnetic . | . . . Robot Hit Streak 12 | 5 6 12 Robot Miss Streak 2 | . 2 . Penetration Max . | . . . Secondary Targets 3 | . 3 . Max Gunslinging Chain 1 | . 1 . Shots Hit Robots 37 | 5 26 6 Core Hits 30 | 2 15 13 Critical Kills . | . . . Critical Parts Destroyed . | . . . Critical Strikes 1 | . 1 . Burn 1 | . 1 . Melee Attacks . | . . . Impact . | . . . Slashing . | . . . Piercing . | . . . Sneak Attacks . | . . . Combat Hostiles . | . . . Follow-up Attacks . | . . . Damage Inflicted 807 | 61 371 375 Guns 404 | 61 298 45 Cannons . | . . . Explosions 403 | . 73 330 Melee . | . . . Ramming . | . . . Kinetic 239 | 22 172 45 Thermal 165 | 39 126 . Explosive 403 | . 73 330 Electromagnetic . | . . . Impact . | . . . Slashing . | . . . Piercing . | . . . Highest Corruption . | . . . Average Corruption . | . . . Corruption Purged . | . . . Corruption Blocked . | . . . Overload Shots . | . . . Overflow Damage . | . . . Projectiles . | . . . Explosions . | . . . Melee . | . . . Knockbacks . | . . . Impact . | . . . Kinetic . | . . . Secondary . | . . . Self-Inflicted Damage 167 | . 34 133 Shots 5 | . 1 4 Rammed 1 | . 1 . Targets Rammed 1 | . 1 . Kicked . | . . . Crushed . | . . . Highest Temperature 60 | 39 60 . Average Temperature 19 | 21 19 . Received Heat Transfer 87 | 24 48 15 Siege Activations . | . . . Robots Corrupted . | . . . Combat Hostiles . | . . . Parts Fried . | . . . Impact Corruptions . | . . . Robots Melted . | . . . Combat Hostiles . | . . . Parts Melted . | . . . Heat Transferred 555 | 111 444 . Parts Sabotaged . | . . . Parts Stolen . | . . . Parts Stripped . | . . . Power Chain Reactions . | . . . Missiles Intercepted . | . . . Alert | -11 -10 -10 ------- Run | Scr Mat Min Peak Influence 241 | 20 241 152 Initial 11 | . 11 . Average 99 | 2 135 40 Maximum Alert Level 1 | . 1 . Low Security (%) 75 | 100 62 100 Level 1 24 | . 37 . Level 2 . | . . . Level 3 . | . . . Level 4 . | . . . Level 5 . | . . . High Security . | . . . Max Security . | . . . Squads Dispatched . | . . . Investigation . | . . . Extermination . | . . . Reinforcement . | . . . Assault . | . . . Garrison . | . . . Intercept . | . . . Searches Triggered . | . . . Construction Impeded . | . . . Haulers Reinforced . | . . . Active Scanning Responses . | . . . Cargo Convoy Interrupts . | . . . Stealth | -11 -10 -10 --------- Run | Scr Mat Min Distress Signals 1 | . 1 . Communications Jammed . | . . . Distress Signals . | . . . Times Spotted 22 | 1 15 6 Peak Tracking Total 4 | 1 4 3 Tactical Retreats 1 | . . 1 Traps | -11 -10 -10 ------- Run | Scr Mat Min Traps Triggered 1 | . 1 . Indirectly . | . . . Trap Hack Attempts . | . . . Triggered . | . . . Disarmed . | . . . Reprogrammed . | . . . Reused . | . . . Traps Extracted . | . . . Installed . | . . . Triggered . | . . . Machines | -11 -10 -10 ---------- Run | Scr Mat Min Machines Disabled . | . . . Max in Single Turn . | . . . Machines Sabotaged . | . . . Garrisons Compromised . | . . . Overloaded Fab Kills . | . . . Hacking | -11 -10 -10 --------- Run | Scr Mat Min Machines Accessed 7 | . 7 . Terminals 4 | . 4 . Fabricators . | . . . Repair Stations 1 | . 1 . Recycling Units 2 | . 2 . Scanalyzers . | . . . Garrison Access . | . . . Total Hacks 28 | . 28 . Successful 17 | . 17 . Failed 11 | . 11 . Catastrophic . | . . . Database Lockouts . | . . . Manual . | . . . Terminals 20 | . 20 . Fabricators . | . . . Repair Stations 3 | . 3 . Recycling Units 5 | . 5 . Scanalyzers . | . . . Garrison Access . | . . . Terminal Hacks 11 | . 11 . Record 3 | . 3 . Prototype ID Bank 2 | . 2 . Emergency Access Points 1 | . 1 . Alert Level 1 | . 1 . Maintenance Status 1 | . 1 . Investigation Status 1 | . 1 . Recall Investigation 1 | . 1 . Zone Layout 1 | . 1 . Fabricator Hacks . | . . . Repair Station Hacks 1 | . 1 . Scan Component 1 | . 1 . Recycling Unit Hacks 5 | . 5 . Recycle Component 1 | . 1 . Process 1 | . 1 . Report Inventory 2 | . 2 . Retrieve Matter 1 | . 1 . Scanalyzer . | . . . Garrison Access Hacks . | . . . Unauthorized Hacks . | . . . Terminals . | . . . Fabricators . | . . . Repair Stations . | . . . Recycling Units . | . . . Scanalyzers . | . . . Garrison Access . | . . . Data Cores Recovered . | . . . Used . | . . . Hacking Detections 6 | . 6 . Full Trace Events 1 | . 1 . Feedback Events . | . . . Feedback Blocked . | . . . Robot Schematics Acquired . | . . . Robots Built . | . . . Authchips . | . . . Time . | . . . Total Robot Build Rating . | . . . Part Schematics Acquired . | . . . Parts Built . | . . . Authchips . | . . . Time . | . . . Total Part Build Rating . | . . . Parts Repaired . | . . . Time . | . . . Parts Recycled 1 | . 1 . Recycled Matter 141 | . 141 . Retrieved Matter 273 | . 273 . Retrieved Components . | . . . Parts Scanalyzed . | . . . Part Schematics Acquired . | . . . Parts Damaged . | . . . Bothacking | -11 -10 -10 ------------ Run | Scr Mat Min Used RIF Installer . | . . . Robots Hacked . | . . . Non-combat . | . . . Combat . | . . . Robot Hacks Applied . | . . . Relay Couplers Released . | . . . Fabnet Peak Effective % . | . . . Robots Rewired . | . . . Allies Hacked . | . . . Hacks Repelled . | . . . Allies | -11 -10 -10 -------- Run | Scr Mat Min Total Allies 2 | . . 2 Largest Group 2 | . . 2 Highest-Rated Group 41 | . . 41 Highest-Rated Ally 31 | . . 31 Total Orders . | . . . Ally Attacks 1 | . . 1 Total Damage 21 | . . 21 Kills 1 | . . 1 Allies Corrupted . | . . . Allies Melted . | . . . Intel | -11 -10 -10 ------- Run | Scr Mat Min Robot Analysis Total . | . . . Derelict Logs Recovered 1 | . . 1 Drone Launches . | . . . Drone Recoveries . | . . . Exploration | -11 -10 -10 ------------- Run | Scr Mat Min Turns Passed 1298 | 139 858 301 Spaces Moved 640 | 73 481 86 Core 26 | 26 . . Treads 170 | . 84 86 Legs 444 | 47 397 . Wheels . | . . . Hover . | . . . Flight . | . . . Fastest Speed 50 | 50 120 240 Average Speed 156 | 95 151 240 Slowest Speed 330 | 120 330 240 Overloaded Moves . | . . . Propulsion Burnouts . | . . . Robots Hopped . | . . . Cave-ins Triggered . | . . . Exploration Rate (%) 34 | 6 70 28 Regions Visited 2 Branch Regions 1 Pre-discovered Areas . | . . . Known Exits Taken . | . . . Unknown Exits Taken 2 | 1 1 . Scrap Searched 1 | . . 1 Spaces Dug . | . . . Terrain Destroyed 60 | . 23 37 Melee . | . . . Projectile . | . . . AOE 60 | . 23 37 Terrain Rammed . | . . . Walls Destroyed . | . . . Machines Disabled . | . . . Actions | -11 -10 -10 --------- Run | Scr Mat Min Total 874 | 137 568 169 Wait 153 | 47 30 76 Move 638 | 72 480 86 Hop . | . . . Pick Up 21 | 8 13 . Fast Attach 1 | . 1 . Attach 9 | 6 2 1 Detach 2 | 1 1 . Swap 8 | . 8 . Drop 9 | . 9 . Fire 32 | 3 23 6 Melee . | . . . Ram . | . . . Kick . | . . . Crush 1 | . 1 . Escape Stasis . | . . . Rewire . | . . . Trap . | . . . Miscellaneous . | . . . Route ------- -11/Scrapyard -10/Materials (discovered 3 exits: [*Mat x2] / [*Min]) -10/Mines History --------- Turn | Location | Event 2 | -11/Scrapyard | Met Revision 17 111 | -11/Scrapyard | Discovered new exit (range 8) 140 | -11/Scrapyard | Entered Materials 306 | -10/Materials | Build established: Mutant 460 | -10/Materials | Discovered new exit (range 14) 539 | -10/Materials | Discovered new exit (range 6) 616 | -10/Materials | Discovered new exit (range 16) 998 | -10/Materials | Entered Mines 1093 | -10/Mines | Learned Materials garrison access intel 1238 | -10/Mines | Core integrity fell below 50% 1272 | -10/Mines | Core integrity fell below 20% 1299 | -10/Mines | Destroyed by S-10 Pest with Light Assault Rifle Last Messages --------------- The unstable cave ceiling collapses. Rocket Launcher destroyed. Assault Rifle destroyed. The unstable cave ceiling collapses. Imp. Heat Sink crushed. The unstable cave ceiling collapses. S-10 Pest destroyed. U-05 Engineer builds a Wall. U-05 Engineer lays Concrete. U-05 Engineer builds a Wall. Aluminum Leg destroyed. Ion Engine destroyed. R-06 Scavenger collects Mak. Leg. R-06 Scavenger collects Sml. Storage Unit. U-05 Engineer builds a Wall. Lgt. Treads destroyed. R-06 Scavenger collects Aluminum Leg. U-05 Engineer lays Concrete. U-05 Engineer builds a Wall. [Achievement: First Step to Greatness] Map ----- +----------------------------------------------------+ | | | ????????????????????????????????????????????????? | | ????????????????????????????????????????????????? | | ????????????????????????????????????????????????? | | ????????????????????????????????????????????????? | | ????????????????????????????????????????????????? | | ????????????????????????????????????????????????? | | ????????????????????????????????????????????????? | | ##??????????????????????????????????????????????? | | #??????????????????????????????????????????????? | | #??????????????????????????????????????????????? | | #????????????????????????###???????????????????? | | #???????????????????????? ???????????????????? | | #???????????????????????? ???????????????????? | | #???????????????????????? #???????????????????? | | ##??????#####???????????? #???????????????????? | | ##?##### ##??????????? #???????????????????? | | ### #??????????? #???????????????????? | | ##???####### ##??????????????????? | | ##??# # ###????? #?????????? | | ####### ##?# # #??? ?????????? | | #?????## ###### #? #????????? | | #??????# ## %u # #?????????? | | #???#### ## ###r #???????????? | | #???# ## # #????????????? | | ##### ## ### #% %@ #????????????? | | ##??# ## #?# # #s* ## #????????????? | | ## ### ### #?# #####%###??? ##????????????? | | #??####?###### #?# #???#=#???????#?????????????? | | #????????## ### #???#s#?????????????????????? | | #????????# #???# #?????????????????????? | | #??????# #####???# ?????????????????????? | | #?? ##???????###?????????????????????? | | #?##### #????????????????????????????????? | | #?????# ##????????????????????????????????? | | ??????# ##??????????????????????????????????? | | ??????# #????????????????????????????????????? | | ??????# ?????????????????????????????????????? | | ??????# ?????????????????????????????????????? | | ??????## ??????????????????????????????????????? | | ???????###??????????????????????????????????????? | | ????????????????????????????????????????????????? | | ????????????????????????????????????????????????? | | ????????????????????????????????????????????????? | | ????????????????????????????????????????????????? | | ????????????????????????????????????????????????? | | ????????????????????????????????????????????????? | | ????????????????????????????????????????????????? | | ????????????????????????????????????????????????? | | ????????????????????????????????????????????????? | +----------------------------------------------------+ Best States ------------- Heat Dissipation 25 Energy Generation 10 Energy Capacity 250 Matter Stores 300 Matter Capacity 300 Sight Range 16 Terrain Scan Density 10 Resistance: KI 20 Resistance: TH 20 Resistance: EX 20 Resistance: EM 20 Resistance: I 20 Resistance: S 20 Resistance: P 20 Utility Shielding 33 Evasion (%) 55 Targeting Accuracy 5 Recoil Reduction 1 Offensive Hacking 10 Item Schematics ----------------- None Robot Schematics ------------------ None Fabricated ------------ Nothing Alien Tech Used ----------------- None Achievements -------------- Backstab Crack Shot First Step to Greatness Let's See Who's Tougher Challenges ------------ None Game ------ Seed GlidesysHackingAxe Manual? 0 Play Time 00:28:19 Cumulative 0.9 hours Start 2022.07.15 @ 04:15:05 End 2022.07.15 @ 04:48:01 Sessions 1 Manual Loads 0 Difficulty Adventurer Special Mode None Game No. 1 Rogue 0 Adventurer 1 Explorer 0 Win Type - Total 0 Types 0/0/0/0/0/0/0/0/0 Lore% 0 Gallery% 1 Achievement% 1 Wizard Run 0 Options --------- ASCII 0 Keyboard 0 Movement Mouse Keybinds 0 Fullscreen 2 Font 18/SmallcapsGlow Map View 76x50 Tactical HUD 0 Map Filters NONE Filters NONE Steam 1 RUN: 0f842229-31b8-4af1-9b43-cd2c020341b4